bitfinex/quotes_BTCUSD_20251124
["timestamp","ask_amount","ask_price","bid_price","bid_amount"]
[1764013802718,0.22607299,88467.0,88466.0,0.04337562]
[1764013803089,0.01130377,88466.0,88463.0,0.04195]
[1764013803293,0.01130364,88467.0,88464.0,0.11261071]
[1764013803493,0.23737682,88467.0,88466.0,0.05498]
[1764013803702,0.22606307,88471.0,88466.0,0.05498]
[1764013803703,0.22603567,88482.0,88471.0,0.01130313]
[1764013804066,0.22603567,88482.0,88481.0,0.09693]
[1764013804067,0.00011779,88482.0,88481.0,0.09693]
[1764013804569,0.00011779,88482.0,88481.0,0.17787]
[1764013805310,0.00011779,88482.0,88481.0,0.32385254]
[1764013805511,0.00011779,88482.0,88481.0,0.17787]
[1764013805834,0.00011779,88482.0,88481.0,0.28231677]
[1764013807697,0.00011779,88482.0,88481.0,0.26731677]
[1764013808085,0.00011779,88482.0,88481.0,0.26831677]
[1764013808282,0.00011779,88482.0,88481.0,0.16387]
[1764013809230,0.00011779,88482.0,88481.0,0.38990722]
[1764013810734,0.00011779,88482.0,88481.0,0.39710722]
[1764013811384,0.00011779,88482.0,88481.0,0.54308976]
[1764013812580,0.00011779,88482.0,88481.0,0.54208976]
[1764013812757,0.00011779,88482.0,88481.0,0.65831107]
[1764013813788,0.00011779,88482.0,88481.0,0.77092178]
[1764013815456,0.00011779,88482.0,88481.0,0.76372178]
[1764013815659,0.00011779,88482.0,88481.0,0.77092178]
[1764013816735,0.01129969,88498.0,88496.0,0.22599803]
[1764013816943,0.01129969,88498.0,88497.0,0.22156269]
[1764013817092,0.22599319,88499.0,88497.0,0.30760269]
[1764013817289,0.22599319,88499.0,88498.0,0.13806]
[1764013817494,0.22599125,88499.0,88498.0,0.13806]
[1764013819134,0.22599125,88499.0,88498.0,0.17081]
[1764013819347,0.22599125,88499.0,88498.0,0.22929649]
[1764013819802,0.22599125,88499.0,88498.0,0.14325649]
[1764013819997,0.22599125,88499.0,88498.0,0.17081]
[1764013820821,0.2259938,88498.0,88497.0,0.14468278]
[1764013821089,0.24687074,88498.0,88497.0,0.14468278]
[1764013821292,0.36532074,88498.0,88497.0,0.14468278]
[1764013821697,0.68832074,88498.0,88497.0,0.14468278]
[1764013821916,0.68832074,88498.0,88497.0,0.15915106]
[1764013822213,0.56987074,88498.0,88497.0,0.15915106]
[1764013822413,0.68864856,88498.0,88497.0,0.14468278]
[1764013822614,0.68864856,88498.0,88483.0,0.14468278]
[1764013822774,0.22602956,88484.0,88483.0,0.14468278]
[1764013822981,0.01130173,88482.0,88473.0,0.08604]
[1764013823180,0.22605766,88473.0,88472.0,0.04195]
[1764013823416,0.22605766,88473.0,88472.0,0.04206779]
[1764013823618,0.22605766,88473.0,88472.0,0.06685964]
[1764013824467,0.0113016,88483.0,88475.0,0.01130262]
[1764013824695,0.00999999,88520.0,88473.0,0.08604]
[1764013824696,0.01130032,88493.0,88486.0,0.01130122]
[1764013824864,0.02090115,88492.0,88488.0,0.22601683]
[1764013825156,0.22600199,88495.0,88488.0,0.22601683]
[1764013825157,0.02090115,88491.0,88489.0,0.28852945]
[1764013825408,0.01130045,88492.0,88491.0,0.05202]
[1764013825558,0.22600657,88493.0,88492.0,0.08477]
[1764013825770,0.24691633,88493.0,88492.0,0.08477]
[1764013826013,0.24691633,88493.0,88492.0,0.17081]
[1764013826014,0.02090976,88493.0,88492.0,0.17081]
[1764013826320,0.02090976,88493.0,88492.0,0.21162265]
[1764013826687,0.02090976,88493.0,88492.0,0.23422356]
[1764013826970,0.23729196,88499.0,88492.0,0.21162265]
[1764013827180,0.01129994,88496.0,88493.0,0.10864065]
[1764013827366,0.24692258,88495.0,88493.0,0.10864065]
[1764013827503,0.22600205,88495.0,88494.0,0.15059405]
[1764013827872,0.24692915,88495.0,88494.0,0.20261405]
[1764013828184,0.24717485,88495.0,88494.0,0.11657405]
[1764013828469,0.24717485,88495.0,88494.0,0.05202]
[1764013828615,0.24717485,88495.0,88494.0,0.19670278]
[1764013829335,0.24717485,88495.0,88494.0,0.14468278]
[1764013829756,0.36882485,88495.0,88494.0,0.14468278]
[1764013830359,0.30136485,88495.0,88494.0,0.14468278]
[1764013830684,0.30136485,88495.0,88494.0,0.15915106]
[1764013830685,0.24717485,88495.0,88494.0,0.15915106]
[1764013831098,0.24717485,88495.0,88494.0,0.21117106]
[1764013831320,0.24717485,88495.0,88494.0,0.15915106]
[1764013832271,0.24817485,88495.0,88494.0,0.15915106]
[1764013833219,0.36970485,88495.0,88494.0,0.15915106]
[1764013833642,0.36970485,88495.0,88494.0,0.14468278]
[1764013835551,0.29030485,88495.0,88494.0,0.14468278]
[1764013836970,0.37970485,88495.0,88494.0,0.14468278]
[1764013837812,0.24817485,88495.0,88494.0,0.19670278]
[1764013837975,0.24717485,88495.0,88494.0,0.14468278]
[1764013838319,0.36870485,88495.0,88494.0,0.15980677]
[1764013838614,0.36870485,88495.0,88494.0,0.14468278]
[1764013838816,0.36970485,88495.0,88494.0,0.14468278]
[1764013839794,0.380191,88495.0,88494.0,0.14468278]
[1764013840182,0.38019017,88495.0,88494.0,0.14468278]
[1764013840384,0.36970485,88495.0,88494.0,0.14468278]
[1764013842522,0.24817485,88495.0,88494.0,0.15915106]
[1764013843966,0.29067485,88495.0,88494.0,0.15915106]
[1764013844206,0.36970485,88495.0,88494.0,0.15915106]
[1764013844538,0.24817485,88495.0,88494.0,0.15915106]
[1764013845001,0.0221728,88495.0,88494.0,0.52010508]
[1764013845325,0.24817426,88495.0,88494.0,0.29410106]
[1764013845704,0.24817426,88495.0,88494.0,0.21057106]
[1764013846115,0.0221728,88495.0,88494.0,0.29410106]
[1764013846342,0.24817426,88495.0,88494.0,0.29410106]
[1764013846495,0.24817426,88495.0,88494.0,0.21057106]
[1764013846918,0.24717426,88495.0,88494.0,0.21057106]
[1764013847607,0.24817426,88495.0,88494.0,0.21057106]
[1764013848467,0.24817426,88495.0,88494.0,0.14468278]
[1764013849248,0.22724716,88495.0,88494.0,0.14468278]
[1764013849982,0.22600146,88495.0,88494.0,0.14468278]
[1764013853991,0.01129841,88508.0,88496.0,0.01129994]
[1764013854264,0.23727472,88505.0,88504.0,0.08811]
[1764013854423,0.23727472,88505.0,88504.0,0.096921]
[1764013854847,0.25825569,88505.0,88504.0,0.096921]
[1764013855023,0.25825569,88505.0,88504.0,0.045041]
[1764013855502,0.25825569,88505.0,88504.0,0.18972378]
[1764013856216,0.25925569,88505.0,88504.0,0.18972378]
[1764013856976,0.25825569,88505.0,88504.0,0.18972378]
[1764013857179,0.25925569,88505.0,88504.0,0.32080378]
[1764013857544,0.25925569,88505.0,88504.0,0.24160378]
[1764013857785,0.02198097,88505.0,88504.0,0.32080378]
[1764013857989,0.001,88505.0,88504.0,0.32080378]
[1764013859196,0.22597481,88506.0,88504.0,0.32180378]
[1764013859422,0.22597481,88506.0,88505.0,0.2084587]
[1764013859627,0.01129841,88508.0,88505.0,0.43443433]
[1764013859831,0.22597082,88507.0,88506.0,0.13108]
[1764013860042,0.01141618,88508.0,88507.0,0.05188]
[1764013860043,0.00011777,88508.0,88507.0,0.05188]
[1764013860253,0.00011777,88508.0,88507.0,0.13828]
[1764013860901,0.00051695,88508.0,88507.0,0.13828]
[1764013861085,0.00051695,88508.0,88507.0,0.28296278]
[1764013861291,0.00051695,88508.0,88507.0,0.39818409]
[1764013862140,0.00051695,88508.0,88507.0,0.28296278]
[1764013862345,0.00151695,88508.0,88507.0,0.27576278]
[1764013862475,0.00151695,88508.0,88507.0,0.14468278]
[1764013862476,0.00479499,88508.0,88507.0,0.14468278]
[1764013862687,0.02474014,88508.0,88507.0,0.14468278]
[1764013862888,0.02474014,88508.0,88507.0,0.14568278]
[1764013863144,0.02474014,88508.0,88507.0,0.16459406]
[1764013863705,0.02474014,88508.0,88507.0,0.16359406]
[1764013863917,0.14695014,88508.0,88507.0,0.16359406]
[1764013864259,0.14695014,88508.0,88505.0,0.0072]
[1764013864260,0.22597082,88507.0,88505.0,0.0072]
[1764013864476,0.02422319,88506.0,88505.0,0.0072]
[1764013865434,0.22599636,88497.0,88496.0,0.14468278]
[1764013867250,0.22699636,88497.0,88496.0,0.14468278]
[1764013868367,0.001,88497.0,88496.0,0.27576278]
[1764013868589,0.001,88497.0,88496.0,0.3094871]
[1764013868806,0.22699636,88497.0,88496.0,0.2302871]
[1764013869207,0.22599636,88497.0,88496.0,0.1784071]
[1764013869598,0.22699636,88497.0,88496.0,0.1784071]
[1764013872968,0.2479502,88497.0,88496.0,0.1444496]
[1764013873518,0.22600657,88493.0,88492.0,0.0072]
[1764013873732,0.24798371,88493.0,88492.0,0.0072]
[1764013875759,0.24898371,88493.0,88492.0,0.0072]
[1764013876333,0.22603211,88483.0,88480.0,0.082]
[1764013876533,0.22603467,88482.0,88480.0,0.0072]
[1764013876734,0.22603467,88482.0,88481.0,0.048769]
[1764013876987,0.22603467,88482.0,88481.0,0.184939]
[1764013879140,0.22603467,88482.0,88481.0,0.16992]
[1764013879994,0.22603467,88482.0,88481.0,0.08792]
[1764013880399,0.22603467,88482.0,88481.0,0.03375]
[1764013880813,0.22603467,88482.0,88481.0,0.08792]
[1764013881963,0.22603467,88482.0,88481.0,0.16992]
[1764013882220,0.22603467,88482.0,88481.0,0.31602]
[1764013882435,0.22603467,88482.0,88481.0,0.337556]
[1764013882857,0.23732201,88488.0,88481.0,0.337556]
[1764013883067,0.01130147,88484.0,88482.0,0.10460346]
[1764013883273,0.22603211,88483.0,88482.0,0.10460346]
[1764013883497,0.22603211,88483.0,88482.0,0.02260346]
[1764013883933,0.22603211,88483.0,88482.0,0.07677346]
[1764013884151,0.22603211,88483.0,88482.0,0.13617]
[1764013884742,0.22603211,88483.0,88482.0,0.15877346]
[1764013884976,0.22603211,88483.0,88482.0,0.22204527]
[1764013885192,0.22602275,88487.0,88482.0,0.22204527]
[1764013885193,0.00024566,88503.0,88490.0,0.01130071]
[1764013885400,0.01129994,88496.0,88492.0,0.05417]
[1764013885612,0.23730689,88493.0,88492.0,0.05417]
[1764013885819,0.23730689,88493.0,88492.0,0.01222122]
[1764013886264,0.01130007,88495.0,88492.0,0.10463122]
[1764013886464,0.01130007,88495.0,88494.0,0.05417]
[1764013886874,0.01130007,88495.0,88494.0,0.13617]
[1764013888207,0.01130007,88495.0,88494.0,0.28227]
[1764013889063,0.01130007,88495.0,88494.0,0.3426891]
[1764013889379,0.01130007,88495.0,88494.0,0.1461]
[1764013890593,0.23730153,88495.0,88494.0,0.1461]
[1764013890959,0.01129943,88500.0,88494.0,0.28227]
[1764013891194,0.22599984,88496.0,88495.0,0.09241]
[1764013891611,0.22599984,88496.0,88495.0,0.25620754]
[1764013891970,0.01129981,88497.0,88495.0,0.25620754]
[1764013892291,0.01129943,88500.0,88499.0,0.22599125]
[1764013892292,0.001,88500.0,88499.0,0.22599125]
[1764013892500,0.001,88500.0,88499.0,0.50826125]
[1764013892702,0.001,88500.0,88499.0,0.62348256]
[1764013893881,0.00024566,88503.0,88502.0,0.22598359]
[1764013894081,0.00024566,88503.0,88502.0,0.28735359]
[1764013894399,0.00024566,88503.0,88502.0,0.36935359]
[1764013895001,0.00024566,88503.0,88502.0,0.14337]
[1764013895202,0.00024566,88503.0,88502.0,0.20810396]
[1764013895371,0.00024566,88503.0,88502.0,0.43408755]
[1764013897128,0.00024566,88503.0,88502.0,0.58018755]
[1764013900834,0.00024566,88503.0,88502.0,0.35420396]
[1764013901040,0.00024566,88503.0,88502.0,0.58018755]
[1764013908885,0.00011777,88508.0,88505.0,0.23727472]
[1764013909088,0.00011777,88508.0,88507.0,0.08154]
[1764013909488,0.00011777,88508.0,88507.0,0.38021082]
[1764013910295,0.00011777,88508.0,88507.0,0.38121082]
[1764013910543,0.00011777,88508.0,88507.0,0.15524]
[1764013910887,0.22608604,88508.0,88507.0,0.15524]
[1764013911115,0.00011777,88508.0,88507.0,0.27046131]
[1764013911325,0.22608604,88508.0,88507.0,0.001]
[1764013911536,0.22608604,88508.0,88507.0,0.14685434]
[1764013911854,0.60016604,88508.0,88507.0,0.14685434]
[1764013912783,0.70951272,88508.0,88507.0,0.14685434]
[1764013912990,0.71051272,88508.0,88507.0,0.14585434]
[1764013913362,0.70951272,88508.0,88507.0,0.16043977]
[1764013913733,0.71051272,88508.0,88507.0,0.16043977]
[1764013913969,0.62309272,88508.0,88507.0,0.16043977]
[1764013914791,0.62309272,88508.0,88507.0,0.01458543]
[1764013915223,0.22598614,88501.0,88500.0,0.14585434]
[1764013916194,0.22598614,88501.0,88500.0,0.26641434]
[1764013916626,0.22698614,88501.0,88500.0,0.26641434]
[1764013917032,0.001,88501.0,88500.0,0.26641434]
[1764013917362,0.22698614,88501.0,88500.0,0.30875085]
[1764013917545,0.001,88501.0,88500.0,0.53473955]
[1764013918131,0.001,88501.0,88500.0,0.30875085]
[1764013918334,0.22698614,88501.0,88500.0,0.30875085]
[1764013918554,0.22598614,88501.0,88500.0,0.30875085]
[1764013918922,0.001,88501.0,88500.0,0.30875085]
[1764013919401,0.001,88501.0,88500.0,0.53473955]
[1764013919607,0.01141618,88508.0,88504.0,0.22597848]
[1764013919876,0.22597109,88507.0,88505.0,0.08131121]
[1764013920261,0.00011777,88508.0,88506.0,0.15535]
[1764013920495,0.00011777,88508.0,88507.0,0.04786]
[1764013920701,0.00011777,88508.0,88507.0,0.51498224]
[1764013920910,0.00011777,88508.0,88507.0,0.26641434]
[1764013921133,0.00011777,88508.0,88507.0,0.60605307]
[1764013921877,0.00111777,88508.0,88507.0,0.60605307]
[1764013922450,0.00011777,88508.0,88507.0,0.60605307]
[1764013922845,0.65852481,88550.0,88507.0,0.60605307]
[1764013922846,0.00327804,88549.0,88538.0,0.01129458]
[1764013923004,0.00327804,88549.0,88535.0,0.01129496]
[1764013923005,0.23716217,88547.0,88539.0,0.22588671]
[1764013923208,0.03225396,88548.0,88539.0,0.22588671]
[1764013923209,0.01129662,88542.0,88541.0,0.22588405]
[1764013923404,0.00039271,88549.0,88547.0,0.08359]
[1764013923645,0.54925843,88549.0,88548.0,0.04786]
[1764013923855,0.22725843,88549.0,88548.0,0.12056]
[1764013924169,0.00039271,88549.0,88548.0,0.136909]
[1764013924468,0.00155891,88549.0,88548.0,0.136909]
[1764013925238,0.00255891,88549.0,88548.0,0.136909]
[1764013925644,0.00155891,88549.0,88548.0,0.136909]
[1764013925848,0.00155891,88549.0,88548.0,0.064209]
[1764013926681,0.00155891,88549.0,88548.0,0.136909]
[1764013928559,0.01136795,88558.0,88550.0,0.04786]
[1764013928717,0.01136795,88558.0,88549.0,0.0727]
[1764013928718,0.22585819,88552.0,88551.0,0.06541705]
[1764013929137,0.22585819,88552.0,88551.0,0.18597705]
[1764013929731,0.22685819,88552.0,88551.0,0.18597705]
[1764013930383,0.001,88552.0,88551.0,0.18597705]
[1764013931170,0.22685599,88552.0,88551.0,0.18597705]
[1764013931419,0.001,88552.0,88551.0,0.18597705]
[1764013932082,0.22685599,88552.0,88551.0,0.18597705]
[1764013932287,0.001,88552.0,88551.0,0.18597705]
[1764013932688,0.22685599,88552.0,88551.0,0.11327705]
[1764013932893,0.22685599,88552.0,88551.0,0.04786]
[1764013933104,0.22685599,88552.0,88551.0,0.12056]
[1764013933594,0.22685599,88552.0,88545.0,0.01129369]
[1764013933595,0.01129369,88545.0,88535.0,0.00716]
[1764013933833,0.22589269,88538.0,88535.0,0.00716]
[1764013934032,0.22589269,88538.0,88532.0,0.00716]
[1764013934553,0.02086158,88537.0,88536.0,0.043592]
[1764013934951,0.05690819,88623.0,88536.0,0.043592]
[1764013934952,0.22587006,88547.0,88538.0,0.01129458]
[1764013935157,0.22587006,88547.0,88544.0,0.05022]
[1764013935158,0.323,88546.0,88544.0,0.05022]
[1764013935357,0.22587731,88544.0,88542.0,0.02258815]
[1764013935884,0.01129343,88547.0,88542.0,0.02258815]
[1764013935885,0.23716447,88547.0,88543.0,0.05022]
[1764013936113,0.23716217,88547.0,88546.0,0.05022]
[1764013936320,0.25802445,88547.0,88546.0,0.05022]
[1764013936492,0.25802445,88547.0,88546.0,0.12326]
[1764013936879,0.02086228,88547.0,88546.0,0.12326]
[1764013937070,0.02086228,88547.0,88546.0,0.14584712]
[1764013937269,0.02086228,88547.0,88546.0,0.14684712]
[1764013937537,0.02086228,88547.0,88546.0,0.12426]
[1764013938181,0.02085945,88547.0,88546.0,0.12426]
[1764013938602,0.22586659,88548.0,88546.0,0.12426]
[1764013938818,0.23715971,88549.0,88547.0,0.14584687]
[1764013938819,0.23715771,88549.0,88547.0,0.14584687]
[1764013938987,0.23715771,88549.0,88548.0,0.0678795]
[1764013939185,0.25801671,88549.0,88548.0,0.1409195]
[1764013940493,0.25801671,88549.0,88548.0,0.0678795]
[1764013940788,0.25801671,88549.0,88548.0,0.1409195]
[1764013941042,0.25801671,88549.0,88548.0,0.0176595]
[1764013941043,0.27632671,88549.0,88548.0,0.0176595]
[1764013941211,0.54887384,88545.0,88544.0,0.14573657]
[1764013941411,0.69262284,88545.0,88544.0,0.14573657]
[1764013943427,0.69362284,88545.0,88544.0,0.14573657]
[1764013943835,0.69362284,88545.0,88528.0,0.07304]
[1764013943836,0.22591977,88527.0,88522.0,0.00716]
[1764013944308,0.01129573,88529.0,88526.0,0.12444104]
[1764013944309,0.23721329,88529.0,88526.0,0.12444104]
[1764013944460,0.23720962,88532.0,88526.0,0.12444104]
[1764013944461,0.01129547,88531.0,88528.0,0.05022]
[1764013944668,0.01129547,88531.0,88529.0,0.02259146]
[1764013944669,0.23720772,88530.0,88529.0,0.02259146]
[1764013945029,0.23720772,88530.0,88527.0,0.01767874]
[1764013945030,0.22591722,88528.0,88527.0,0.01767874]
[1764013945187,0.324,88527.0,88526.0,0.00118104]
[1764013945391,0.34488835,88527.0,88526.0,0.00118104]
[1764013945578,0.34388835,88527.0,88526.0,0.00118104]
[1764013947406,0.34388835,88527.0,88526.0,0.12444104]
[1764013948607,0.34388835,88527.0,88526.0,0.05140104]
[1764013949032,0.34388835,88527.0,88526.0,0.12444104]
[1764013949249,0.34388835,88527.0,88526.0,0.1555258]
[1764013949448,0.34388835,88527.0,88526.0,0.12444104]
[1764013950096,0.34388835,88527.0,88526.0,0.14691761]
[1764013950295,0.39063835,88527.0,88526.0,0.14691761]
[1764013950501,0.61655812,88527.0,88526.0,0.14691761]
[1764013951072,0.69269812,88527.0,88526.0,0.14691761]
[1764013952460,0.69369812,88527.0,88526.0,0.14691761]
[1764013952829,0.61755812,88527.0,88526.0,0.16160937]
[1764013953237,0.61755812,88527.0,88526.0,0.0158728]
[1764013953500,0.61755812,88527.0,88526.0,0.00118104]
[1764013953612,0.57080812,88527.0,88526.0,0.00118104]
[1764013959316,0.57080812,88527.0,88526.0,0.14691761]
[1764013959637,0.69369812,88527.0,88526.0,0.14691761]
[1764013960146,0.61755812,88527.0,88526.0,0.14691761]
[1764013960347,0.69369812,88527.0,88526.0,0.14691761]
[1764013962663,0.61755812,88527.0,88526.0,0.14691761]
[1764013962859,0.57080812,88527.0,88526.0,0.14691761]
[1764013963082,0.57080812,88527.0,88526.0,0.16160937]
[1764013963259,0.57080812,88527.0,88526.0,0.14691761]
[1764013965048,0.57080812,88527.0,88526.0,0.14731032]
[1764013970710,0.02188835,88527.0,88526.0,0.26347032]
[1764013970919,0.02188835,88527.0,88526.0,0.60200335]
[1764013971135,0.001,88527.0,88526.0,0.34365607]
[1764013971346,0.001,88527.0,88526.0,0.22285406]
[1764013971560,0.001,88527.0,88526.0,0.12489375]
[1764013971561,0.22691977,88527.0,88526.0,0.12489375]
[1764013971743,0.22590956,88531.0,88526.0,0.12489375]
[1764013972020,0.01129535,88532.0,88526.0,0.12489375]
[1764013972021,0.01129573,88529.0,88527.0,0.0689]
[1764013972209,0.22591722,88528.0,88527.0,0.0689]
[1764013972413,0.24688832,88528.0,88527.0,0.0689]
[1764013972555,0.24688832,88528.0,88527.0,0.11616]
[1764013972989,0.0209711,88528.0,88527.0,0.23138131]
[1764013973190,0.22591722,88528.0,88527.0,0.23138131]
[1764013974589,0.01129509,88534.0,88527.0,0.23238131]
[1764013974798,0.01129535,88532.0,88528.0,0.0689]
[1764013975002,0.22591213,88530.0,88528.0,0.0689]
[1764013975171,0.01129535,88532.0,88531.0,0.04726]
[1764013975321,0.23720236,88532.0,88531.0,0.04726]
[1764013975683,0.23720236,88532.0,88531.0,0.11616]
[1764013976223,0.23720236,88532.0,88531.0,0.14573657]
[1764013976419,0.23720236,88532.0,88531.0,0.19299657]
[1764013976626,0.23720236,88532.0,88531.0,0.30022067]
[1764013977570,0.23720236,88532.0,88531.0,0.30122067]
[1764013979140,0.0112942,88541.0,88538.0,0.22589114]
[1764013979318,0.0112942,88541.0,88536.0,0.00716]
[1764013979557,0.23717865,88541.0,88540.0,0.0804]
[1764013979732,0.323,88543.0,88541.0,0.22588405]
[1764013980029,0.23716719,88546.0,88542.0,0.2731415]
[1764013980335,0.01129279,88552.0,88542.0,0.2731415]
[1764013980336,0.01129203,88558.0,88547.0,0.01129343]
[1764013980548,0.03224759,88556.0,88552.0,0.2258559]
[1764013980744,0.00024544,88557.0,88556.0,0.30704579]
[1764013980974,0.00024544,88557.0,88556.0,0.36711703]
[1764013981296,0.00024544,88557.0,88556.0,0.21017124]
[1764013981753,0.00024544,88557.0,88556.0,0.1501]
[1764013981929,0.00036315,88557.0,88556.0,0.1501]
[1764013982129,0.22620639,88557.0,88556.0,0.1501]
[1764013982330,0.00036315,88557.0,88556.0,0.1501]
[1764013982958,0.22620639,88557.0,88556.0,0.1501]
[1764013983158,0.22620639,88557.0,88556.0,0.21480533]
[1764013984539,0.00036315,88557.0,88556.0,0.21480533]
[1764013984768,0.21620392,88558.0,88557.0,0.04726]
[1764013984945,0.21620392,88558.0,88557.0,0.07606]
[1764013985147,0.21620392,88558.0,88557.0,0.00716]
[1764013985347,0.22585599,88552.0,88551.0,0.03394]
[1764013985553,0.22585599,88552.0,88540.0,0.03314]
[1764013985554,0.01129382,88544.0,88540.0,0.03314]
[1764013985772,0.2258815,88542.0,88541.0,0.010204]
[1764013986492,0.2258815,88542.0,88540.0,0.03325771]
[1764013986493,0.54888405,88541.0,88540.0,0.00011771]
[1764013986691,0.64998405,88541.0,88540.0,0.00011771]
[1764013987057,0.67087792,88541.0,88540.0,0.00011771]
[1764013987952,0.67187792,88541.0,88540.0,0.00011771]
[1764013991380,0.58964792,88541.0,88540.0,0.00011771]
[1764013991982,0.58964792,88541.0,88540.0,0.14621771]
[1764013992574,0.66187792,88541.0,88540.0,0.14621771]
[1764013995473,2.66187792,88541.0,88540.0,0.14621771]
[1764013995657,2.66187792,88541.0,88540.0,0.00011771]
[1764013995658,2.67187792,88541.0,88540.0,0.00011771]
[1764013995861,2.70584594,88541.0,88540.0,0.00011771]
[1764013996031,2.84175093,88541.0,88540.0,0.00011771]
[1764013996235,0.22589936,88535.0,88534.0,0.0011809]
[1764013996440,2.69502378,88535.0,88534.0,0.0011809]
[1764013996788,2.76212378,88535.0,88534.0,0.0011809]
[1764013997004,2.76212378,88535.0,88511.0,0.1461]
[1764013997005,0.54895806,88512.0,88511.0,0.1442809]
[1764013997553,0.54895806,88512.0,88511.0,0.1649987]
[1764013997955,0.54895806,88512.0,88511.0,0.2103187]
[1764013998191,0.54895806,88512.0,88511.0,0.2442587]
[1764013998712,0.54895806,88512.0,88511.0,0.3125787]
[1764013999062,0.55095806,88512.0,88511.0,0.3125787]
[1764013999262,0.54995806,88512.0,88511.0,0.3125787]
[1764014000267,0.324,88512.0,88511.0,0.3125787]
[1764014000665,0.54995806,88512.0,88511.0,0.3125787]
[1764014001084,0.54895806,88512.0,88511.0,0.3125787]
[1764014001317,0.54895806,88512.0,88507.0,0.47247065]
[1764014001318,0.22596827,88508.0,88507.0,0.1442809]
[1764014001515,0.22596827,88508.0,88478.0,0.03314]
[1764014001516,0.22606022,88472.0,88471.0,0.03314]
[1764014001712,0.01130275,88474.0,88460.0,0.03069]
[1764014001713,0.01130416,88463.0,88460.0,0.03069]
[1764014001918,0.22608833,88461.0,88460.0,0.03069]
[1764014002131,0.2260781,88465.0,88462.0,0.07926]
[1764014002317,0.02468,88473.0,88462.0,0.07926]
[1764014002318,0.23736041,88474.0,88465.0,0.04532]
[1764014002508,0.22607463,88467.0,88466.0,0.08819548]
[1764014002777,0.22607463,88467.0,88466.0,0.06832]
[1764014002924,0.22607463,88467.0,88465.0,0.01974545]
[1764014002925,0.22607463,88467.0,88465.0,0.00039271]
[1764014003125,0.22607463,88467.0,88466.0,0.00208876]
[1764014003362,0.22607463,88467.0,88466.0,0.04740876]
[1764014003766,0.22607463,88467.0,88466.0,0.04840876]
[1764014003931,0.22607093,88468.0,88466.0,0.11672876]
[1764014004134,0.22607093,88468.0,88467.0,0.04532]
[1764014004331,0.22607093,88468.0,88467.0,0.11569802]
[1764014004571,0.01130301,88472.0,88467.0,0.24929218]
[1764014004775,0.22606809,88469.0,88468.0,0.09092704]
[1764014004971,0.23737157,88470.0,88468.0,0.06832]
[1764014005176,0.23737157,88470.0,88469.0,0.11364]
[1764014006145,0.23737157,88470.0,88469.0,0.13969834]
[1764014006761,0.23737157,88470.0,88469.0,0.28397924]
[1764014007023,0.23737157,88470.0,88469.0,0.21565924]
[1764014007289,0.22607299,88467.0,88465.0,0.00039271]
[1764014008499,0.23737681,88469.0,88466.0,0.11364]
[1764014008500,0.23737425,88469.0,88466.0,0.11364]
[1764014008664,0.22607141,88468.0,88467.0,0.02260729]
[1764014008869,0.22607141,88468.0,88467.0,0.10960416]
[1764014009069,0.22607141,88468.0,88467.0,0.15492416]
[1764014009717,0.22607141,88468.0,88467.0,0.04532]
[1764014009937,0.22607141,88468.0,88465.0,0.00039271]
[1764014009938,0.22607555,88466.0,88465.0,0.00039271]
[1764014010156,0.56382555,88466.0,88465.0,0.00039271]
[1764014010309,0.63092555,88466.0,88465.0,0.00039271]
[1764014010491,0.65168627,88466.0,88465.0,0.00251221]
[1764014010694,0.65155079,88466.0,88465.0,0.00251221]
[1764014011494,0.66155079,88466.0,88465.0,0.00251221]
[1764014011697,0.66255079,88466.0,88465.0,0.00251221]
[1764014013547,0.59261079,88466.0,88465.0,0.00251221]
[1764014014111,0.65971079,88466.0,88465.0,0.00251221]
[1764014016430,0.57070079,88466.0,88465.0,0.00251221]
[1764014016625,0.02176072,88466.0,88465.0,0.14847221]
[1764014016847,0.02176072,88466.0,88465.0,0.16558035]
[1764014017259,0.02176072,88466.0,88465.0,0.39165845]
[1764014017462,0.24783627,88466.0,88465.0,0.16558035]
[1764014018251,0.24683627,88466.0,88465.0,0.16658035]
[1764014018947,0.24683627,88466.0,88465.0,0.08115221]
[1764014019176,0.24683627,88466.0,88465.0,0.14947221]
[1764014020352,0.24683627,88466.0,88465.0,0.08115221]
[1764014021154,0.24683627,88466.0,88465.0,0.03583221]
[1764014021562,0.24687475,88466.0,88465.0,0.03583221]
[1764014022093,0.29526475,88466.0,88465.0,0.00351221]
[1764014022616,0.29526475,88466.0,88465.0,0.00251221]
[1764014022816,0.24687475,88466.0,88465.0,0.00251221]
[1764014023022,0.24687475,88466.0,88465.0,0.14347221]
[1764014023243,0.24687475,88466.0,88465.0,0.07515221]
[1764014023659,0.24787475,88466.0,88465.0,0.07515221]
[1764014024437,0.24787475,88466.0,88465.0,0.17035752]
[1764014024643,0.24787475,88466.0,88465.0,0.10392752]
[1764014025357,0.24787475,88466.0,88465.0,0.07515221]
[1764014025906,0.24787475,88466.0,88465.0,0.02983221]
[1764014026081,0.24787475,88466.0,88465.0,0.00251221]
[1764014026604,0.57087475,88466.0,88465.0,0.00251221]
[1764014027640,0.57087475,88466.0,88465.0,0.14679311]
[1764014029208,0.58133109,88466.0,88465.0,0.14679311]
[1764014029408,0.35525554,88466.0,88465.0,0.30891042]
[1764014029635,0.3447992,88466.0,88465.0,0.30891042]
[1764014029834,0.57087475,88466.0,88465.0,0.30891042]
[1764014030164,0.57087475,88466.0,88465.0,0.26030311]
[1764014030375,0.58134025,88466.0,88465.0,0.26030311]
[1764014031310,0.3552647,88466.0,88465.0,0.26030311]
[1764014031528,0.58134025,88466.0,88465.0,0.26030311]
[1764014031729,0.3552647,88466.0,88465.0,0.26030311]
[1764014032152,0.3552647,88466.0,88465.0,0.48638121]
[1764014032515,0.35528002,88466.0,88465.0,0.11602221]
[1764014032631,0.58135511,88466.0,88465.0,0.13068311]
[1764014033270,0.58135511,88466.0,88465.0,0.11602221]
[1764014035700,0.58135511,88466.0,88465.0,0.04877221]
[1764014035881,0.58135511,88466.0,88465.0,0.11602221]
[1764014037258,0.58135511,88466.0,88465.0,0.04877221]
[1764014037469,0.58135511,88466.0,88465.0,0.00251221]
[1764014038117,0.58135511,88466.0,88465.0,0.04877221]
[1764014038336,0.58135511,88466.0,88465.0,0.11602221]
[1764014038745,0.58135511,88466.0,88465.0,0.13025943]
[1764014039026,0.03227956,88466.0,88465.0,0.35633753]
[1764014039322,0.0217992,88466.0,88465.0,0.13025943]
[1764014039673,0.24787475,88466.0,88465.0,0.13025943]
[1764014040254,0.2260703,88469.0,88465.0,0.13025943]
[1764014040424,0.22606788,88469.0,88468.0,0.04626]
[1764014040953,0.23736604,88471.0,88468.0,0.11351]
[1764014041139,0.0104863,88470.0,88469.0,0.04626]
[1764014041337,0.23736604,88471.0,88470.0,0.04626]
[1764014041546,0.11261071,88501.0,88476.0,0.0113025]
[1764014041746,0.01130135,88485.0,88481.0,0.2260366]